[Event "Titled Tuesday Blitz June 27 Late 2023"]
[White "Ambartsumova, Karina"]
[Black "Goltsev, Dmitry"]
[WhiteFideId "4166299"]
[BlackFideId "24176710"]
[WhiteElo "2564"]
[BlackElo "2704"]
[Result "1/2-1/2"]
[Round "7"]
[TimeControl "180+2"]
[Date "2023.06.27"]
[WhiteClock "0:00:16"]
[BlackClock "0:01:12"]
[Board "54"]

1. Nf3 {[%clk 0:03:00]}  c5 {[%clk 0:02:57]} 2. c4 {[%clk 0:03:00]}  Nf6 {[%clk 0:02:57]} 3. Nc3 {[%clk 0:02:59]}  d5 {[%clk 0:02:58]} 4. cxd5 {[%clk 0:03:00]}  Nxd5 {[%clk 0:02:59]} 5. e3 {[%clk 0:03:01]}  Nxc3 {[%clk 0:02:59]} 6. bxc3 {[%clk 0:03:01]}  g6 {[%clk 0:03:00]} 7. d4 {[%clk 0:03:00]}  cxd4 {[%clk 0:03:00]} 8. cxd4 {[%clk 0:02:58]}  Bg7 {[%clk 0:03:00]} 9. Bb5+ {[%clk 0:02:53]}  Bd7 {[%clk 0:03:00]} 10. Be2 {[%clk 0:02:52]}  O-O {[%clk 0:03:00]} 11. O-O {[%clk 0:02:52]}  Nc6 {[%clk 0:02:59]} 12. Rb1 {[%clk 0:02:49]}  b6 {[%clk 0:02:58]} 13. d5 {[%clk 0:02:32]}  Na5 {[%clk 0:02:54]} 14. Bb2 {[%clk 0:02:27]}  Bf5 {[%clk 0:02:52]} 15. Bxg7 {[%clk 0:02:26]}  Kxg7 {[%clk 0:02:47]} 16. Qd4+ {[%clk 0:02:19]}  f6 {[%clk 0:02:46]} 17. Rbc1 {[%clk 0:02:15]}  Rc8 {[%clk 0:02:45]} 18. Ba6 {[%clk 0:02:13]}  Rxc1 {[%clk 0:02:41]} 19. Rxc1 {[%clk 0:02:14]}  Qd6 {[%clk 0:02:40]} 20. e4 {[%clk 0:02:03]}  Bd7 {[%clk 0:02:27]} 21. e5 {[%clk 0:01:41]}  Qa3 {[%clk 0:02:21]} 22. Rc7 {[%clk 0:01:30]}  Qxa2 {[%clk 0:02:21]} 23. Rxd7 {[%clk 0:01:18]}  Qb1+ {[%clk 0:02:20]} 24. Bf1 {[%clk 0:01:17]}  Qf5 {[%clk 0:02:03]} 25. Rxe7+ {[%clk 0:01:17]}  Kh8 {[%clk 0:02:03]} 26. exf6 {[%clk 0:01:11]}  Qxf6 {[%clk 0:02:04]} 27. d6 {[%clk 0:01:01]}  Nc6 {[%clk 0:02:00]} 28. Qxf6+ {[%clk 0:00:53]}  Rxf6 {[%clk 0:02:01]} 29. Re8+ {[%clk 0:00:29]}  Kg7 {[%clk 0:02:00]} 30. d7 {[%clk 0:00:29]}  Rd6 {[%clk 0:01:58]} 31. Rc8 {[%clk 0:00:30]}  Rxd7 {[%clk 0:01:46]} 32. Rxc6 {[%clk 0:00:29]}  h6 {[%clk 0:01:43]} 33. g3 {[%clk 0:00:29]}  g5 {[%clk 0:01:43]} 34. h3 {[%clk 0:00:29]}  Rb7 {[%clk 0:01:39]} 35. Ba6 {[%clk 0:00:28]}  Rf7 {[%clk 0:01:39]} 36. Kg2 {[%clk 0:00:28]}  Rd7 {[%clk 0:01:38]} 37. Ne5 {[%clk 0:00:28]}  Rd5 {[%clk 0:01:38]} 38. Rc7+ {[%clk 0:00:25]}  Kf6 {[%clk 0:01:36]} 39. Ng4+ {[%clk 0:00:25]}  Kg6 {[%clk 0:01:36]} 40. Rxa7 {[%clk 0:00:24]}  h5 {[%clk 0:01:36]} 41. Ne3 {[%clk 0:00:24]}  Rd2 {[%clk 0:01:35]} 42. Rb7 {[%clk 0:00:23]}  Rb2 {[%clk 0:01:29]} 43. Nc4 {[%clk 0:00:24]}  Ra2 {[%clk 0:01:30]} 44. Rxb6+ {[%clk 0:00:24]}  Kf5 {[%clk 0:01:30]} 45. Ne3+ {[%clk 0:00:24]}  Ke5 {[%clk 0:01:28]} 46. Bc4 {[%clk 0:00:23]}  Ra1 {[%clk 0:01:24]} 47. Re6+ {[%clk 0:00:22]}  Kd4 {[%clk 0:01:23]} 48. Rg6 {[%clk 0:00:22]}  Rc1 {[%clk 0:01:19]} 49. Rxg5 {[%clk 0:00:22]}  h4 {[%clk 0:01:18]} 50. gxh4 {[%clk 0:00:22]}  Ke4 {[%clk 0:01:18]} 51. h5 {[%clk 0:00:20]}  Kf4 {[%clk 0:01:18]} 52. Rg4+ {[%clk 0:00:21]}  Ke5 {[%clk 0:01:19]} 53. h6 {[%clk 0:00:21]}  Ra1 {[%clk 0:01:13]} 54. h7 {[%clk 0:00:22]}  Ra8 {[%clk 0:01:13]} 55. Rg8 {[%clk 0:00:22]}  Rf8 {[%clk 0:01:12]} 56. h8=Q+ {[%clk 0:00:21]}  Ke4 {[%clk 0:01:12]} 57. Rg4+ {[%clk 0:00:17]}  Rf4 {[%clk 0:01:10]} 58. Rxf4+ {[%clk 0:00:17]}  Kxf4 {[%clk 0:01:11]} 59. Qf6+ {[%clk 0:00:17]}  Ke4 {[%clk 0:01:11]} 60. Qf5+ {[%clk 0:00:18]}  Kd4 {[%clk 0:01:12]} 61. Qd5+ {[%clk 0:00:18]}  Kc3 {[%clk 0:01:13]} 62. Be2 {[%clk 0:00:18]}  Kb2 {[%clk 0:01:13]} 63. Qd2+ {[%clk 0:00:17]}  Ka3 {[%clk 0:01:12]} 64. Bd1 {[%clk 0:00:16]} 1/2-1/2


[Site "https://www.chess.com"]

[Event "Titled Tuesday Blitz June 27 Late 2023"]
[White "Janaszak, Dawid"]
[Black "Czerw, Dawid"]
[WhiteFideId "1119206"]
[BlackFideId "1145746"]
[WhiteElo "2576"]
[BlackElo "2513"]
[Result "1-0"]
[Round "7"]
[TimeControl "180+2"]
[Date "2023.06.27"]
[WhiteClock "0:01:20"]
[BlackClock "0:00:12"]
[Board "60"]

1. e4 {[%clk 0:03:00]}  c5 {[%clk 0:02:55]} 2. Nc3 {[%clk 0:03:00]}  Nc6 {[%clk 0:02:54]} 3. Bb5 {[%clk 0:02:58]}  Nd4 {[%clk 0:02:53]} 4. Nf3 {[%clk 0:02:58]}  g6 {[%clk 0:02:53]} 5. O-O {[%clk 0:02:56]}  Bg7 {[%clk 0:02:51]} 6. e5 {[%clk 0:02:52]}  Nh6 {[%clk 0:02:44]} 7. Re1 {[%clk 0:02:44]}  O-O {[%clk 0:02:42]} 8. d3 {[%clk 0:02:27]}  Nhf5 {[%clk 0:02:38]} 9. Bc4 {[%clk 0:02:24]}  Rb8 {[%clk 0:02:24]} 10. a4 {[%clk 0:02:23]}  b6 {[%clk 0:02:23]} 11. Bg5 {[%clk 0:02:10]}  Bb7 {[%clk 0:02:09]} 12. Nxd4 {[%clk 0:02:07]}  Nxd4 {[%clk 0:02:05]} 13. Nd5 {[%clk 0:01:59]}  Re8 {[%clk 0:01:46]} 14. c3 {[%clk 0:01:44]}  Ne6 {[%clk 0:01:40]} 15. Bh4 {[%clk 0:01:41]}  Bxd5 {[%clk 0:01:26]} 16. Bxd5 {[%clk 0:01:41]}  Qc7 {[%clk 0:01:27]} 17. Bg3 {[%clk 0:01:37]}  Rbc8 {[%clk 0:01:13]} 18. h4 {[%clk 0:01:37]}  h5 {[%clk 0:01:06]} 19. f4 {[%clk 0:01:37]}  Bh6 {[%clk 0:01:01]} 20. f5 {[%clk 0:01:36]}  gxf5 {[%clk 0:00:46]} 21. Qxh5 {[%clk 0:01:36]}  f4 {[%clk 0:00:20]} 22. Qxh6 {[%clk 0:01:34]}  fxg3 {[%clk 0:00:20]} 23. Re4 {[%clk 0:01:31]}  Ng7 {[%clk 0:00:20]} 24. Rae1 {[%clk 0:01:21]}  e6 {[%clk 0:00:12]} 25. Rg4 {[%clk 0:01:20]} 1-0


[Site "https://www.chess.com"]

[Event "Titled Tuesday Blitz June 27 Late 2023"]
[White "Ozates, Tuna"]
[Black "Reprintsev, Alexander"]
[WhiteFideId "6354521"]
[BlackFideId "14100541"]
[WhiteElo "2569"]
[BlackElo "2495"]
[Result "1-0"]
[Round "7"]
[TimeControl "180+2"]
[Date "2023.06.27"]
[WhiteClock "0:01:16"]
[BlackClock "0:00:17"]
[Board "61"]

1. e4 {[%clk 0:02:57]}  d5 {[%clk 0:02:59]} 2. exd5 {[%clk 0:02:56]}  Qxd5 {[%clk 0:02:59]} 3. Nc3 {[%clk 0:02:55]}  Qa5 {[%clk 0:02:59]} 4. g3 {[%clk 0:02:53]}  h5 {[%clk 0:02:52]} 5. h3 {[%clk 0:02:51]}  f5 {[%clk 0:02:34]} 6. Nge2 {[%clk 0:02:33]}  h4 {[%clk 0:02:31]} 7. Nf4 {[%clk 0:02:28]}  Nc6 {[%clk 0:02:09]} 8. Be2 {[%clk 0:02:27]}  hxg3 {[%clk 0:02:07]} 9. Bh5+ {[%clk 0:02:26]}  Kd8 {[%clk 0:02:06]} 10. fxg3 {[%clk 0:02:24]}  Nf6 {[%clk 0:01:54]} 11. Bf3 {[%clk 0:02:24]}  Ne5 {[%clk 0:01:48]} 12. d4 {[%clk 0:02:17]}  Nxf3+ {[%clk 0:01:46]} 13. Qxf3 {[%clk 0:02:17]}  Ne4 {[%clk 0:01:46]} 14. O-O {[%clk 0:02:09]}  Nxc3 {[%clk 0:01:40]} 15. bxc3 {[%clk 0:02:06]}  g5 {[%clk 0:01:39]} 16. Ng6 {[%clk 0:02:03]}  Rg8 {[%clk 0:01:35]} 17. Nxf8 {[%clk 0:02:00]}  Rxf8 {[%clk 0:01:35]} 18. Bxg5 {[%clk 0:02:01]}  f4 {[%clk 0:01:25]} 19. h4 {[%clk 0:01:43]}  Bh3 {[%clk 0:01:20]} 20. Rfe1 {[%clk 0:01:42]}  Rf7 {[%clk 0:01:05]} 21. Re5 {[%clk 0:01:38]}  Qb6 {[%clk 0:00:44]} 22. g4 {[%clk 0:01:33]}  Qb2 {[%clk 0:00:38]} 23. Rae1 {[%clk 0:01:30]}  Qxc2 {[%clk 0:00:36]} 24. Rxe7 {[%clk 0:01:22]}  Rxe7 {[%clk 0:00:34]} 25. Rxe7 {[%clk 0:01:23]}  Kc8 {[%clk 0:00:18]} 26. Re8+ {[%clk 0:01:14]}  Kd7 {[%clk 0:00:17]} 27. Qd5+ {[%clk 0:01:14]}  Kxe8 {[%clk 0:00:16]} 28. Qe6+ {[%clk 0:01:15]}  Kf8 {[%clk 0:00:17]} 29. Bh6# {[%clk 0:01:16]} 1-0


[Site "https://www.chess.com"]

[Event "Titled Tuesday Blitz June 27 Late 2023"]
[White "Martinez Reyes, Pedro Ramon"]
[Black "Laurent-Paoli, Pierre"]
[WhiteFideId "3901807"]
[BlackFideId "26017962"]
[WhiteElo "2525"]
[BlackElo "2711"]
[Result "1-0"]
[Round "7"]
[TimeControl "180+2"]
[Date "2023.06.27"]
[WhiteClock "0:00:48"]
[BlackClock "0:00:12"]
[Board "62"]

1. e4 {[%clk 0:03:00]}  c6 {[%clk 0:02:35]} 2. b3 {[%clk 0:02:58]}  d5 {[%clk 0:02:36]} 3. Bb2 {[%clk 0:02:58]}  Nf6 {[%clk 0:02:24]} 4. e5 {[%clk 0:02:54]}  Ne4 {[%clk 0:02:21]} 5. f3 {[%clk 0:02:46]}  Nc5 {[%clk 0:02:20]} 6. d4 {[%clk 0:02:46]}  Ne6 {[%clk 0:02:17]} 7. c4 {[%clk 0:02:43]}  Nc7 {[%clk 0:02:15]} 8. Bd3 {[%clk 0:02:41]}  e6 {[%clk 0:02:07]} 9. Ne2 {[%clk 0:02:40]}  dxc4 {[%clk 0:02:07]} 10. bxc4 {[%clk 0:02:39]}  b5 {[%clk 0:02:08]} 11. O-O {[%clk 0:02:38]}  Ba6 {[%clk 0:02:07]} 12. c5 {[%clk 0:02:36]}  Nd5 {[%clk 0:01:54]} 13. Qd2 {[%clk 0:02:33]}  b4 {[%clk 0:01:49]} 14. Ng3 {[%clk 0:02:31]}  Bxd3 {[%clk 0:01:47]} 15. Qxd3 {[%clk 0:02:31]}  Qa5 {[%clk 0:01:43]} 16. Nd2 {[%clk 0:02:29]}  Nd7 {[%clk 0:01:35]} 17. Nge4 {[%clk 0:02:28]}  Qb5 {[%clk 0:01:32]} 18. Nc4 {[%clk 0:02:27]}  Qa4 {[%clk 0:01:21]} 19. Qb3 {[%clk 0:02:18]}  Qxb3 {[%clk 0:01:17]} 20. axb3 {[%clk 0:02:19]}  f5 {[%clk 0:01:10]} 21. exf6 {[%clk 0:02:10]}  gxf6 {[%clk 0:01:10]} 22. Ra6 {[%clk 0:02:07]}  Nb8 {[%clk 0:01:05]} 23. Ra4 {[%clk 0:02:07]}  f5 {[%clk 0:00:57]} 24. Ned6+ {[%clk 0:01:59]}  Bxd6 {[%clk 0:00:57]} 25. Nxd6+ {[%clk 0:02:00]}  Kd7 {[%clk 0:00:57]} 26. Rfa1 {[%clk 0:02:00]}  a6 {[%clk 0:00:57]} 27. Bc1 {[%clk 0:01:58]}  Rg8 {[%clk 0:00:44]} 28. Bd2 {[%clk 0:01:57]}  f4 {[%clk 0:00:36]} 29. Kf2 {[%clk 0:01:56]}  e5 {[%clk 0:00:33]} 30. dxe5 {[%clk 0:01:44]}  Ke6 {[%clk 0:00:33]} 31. g3 {[%clk 0:01:41]}  Nd7 {[%clk 0:00:27]} 32. Rxa6 {[%clk 0:01:30]}  Rxa6 {[%clk 0:00:27]} 33. Rxa6 {[%clk 0:01:31]}  Nxc5 {[%clk 0:00:27]} 34. Rxc6 {[%clk 0:01:29]}  fxg3+ {[%clk 0:00:25]} 35. hxg3 {[%clk 0:01:29]}  Nxb3 {[%clk 0:00:20]} 36. Nc4+ {[%clk 0:01:25]}  Ke7 {[%clk 0:00:17]} 37. Be1 {[%clk 0:01:18]}  Nd4 {[%clk 0:00:11]} 38. Rc5 {[%clk 0:01:14]}  Nc3 {[%clk 0:00:08]} 39. Ne3 {[%clk 0:01:11]}  Ndb5 {[%clk 0:00:05]} 40. Rc4 {[%clk 0:01:08]}  Ra8 {[%clk 0:00:02]} 41. Rxb4 {[%clk 0:01:04]}  Ra2+ {[%clk 0:00:03]} 42. Kf1 {[%clk 0:01:05]}  Ke6 {[%clk 0:00:03]} 43. f4 {[%clk 0:01:03]}  h5 {[%clk 0:00:03]} 44. Rc4 {[%clk 0:00:58]}  Ra3 {[%clk 0:00:02]} 45. Rc6+ {[%clk 0:00:57]}  Kd7 {[%clk 0:00:02]} 46. Rc5 {[%clk 0:00:58]}  Rb3 {[%clk 0:00:01]} 47. Nd5 {[%clk 0:00:54]}  Nxd5 {[%clk 0:00:01]} 48. Rxd5+ {[%clk 0:00:55]}  Ke6 {[%clk 0:00:01]} 49. Rc5 {[%clk 0:00:53]}  Kf5 {[%clk 0:00:02]} 50. Bf2 {[%clk 0:00:51]}  Nc3 {[%clk 0:00:02]} 51. e6+ {[%clk 0:00:47]}  Kxe6 {[%clk 0:00:02]} 52. Rxh5 {[%clk 0:00:47]}  Kf6 {[%clk 0:00:02]} 53. Bd4+ {[%clk 0:00:47]}  Kg6 {[%clk 0:00:02]} 54. Rg5+ {[%clk 0:00:47]}  Kh6 {[%clk 0:00:01]} 55. Bxc3 {[%clk 0:00:47]}  Rxc3 {[%clk 0:00:02]} 56. Kg2 {[%clk 0:00:48]}  Rc2+ {[%clk 0:00:02]} 57. Kh3 {[%clk 0:00:48]}  Ra2 {[%clk 0:00:03]} 58. Kg4 {[%clk 0:00:49]}  Ra4 {[%clk 0:00:03]} 59. Re5 {[%clk 0:00:47]}  Rb4 {[%clk 0:00:03]} 60. Re6+ {[%clk 0:00:48]}  Kg7 {[%clk 0:00:03]} 61. Kg5 {[%clk 0:00:48]}  Rb5+ {[%clk 0:00:02]} 62. f5 {[%clk 0:00:48]}  Rb4 {[%clk 0:00:02]} 63. g4 {[%clk 0:00:49]}  Rb7 {[%clk 0:00:02]} 64. Rg6+ {[%clk 0:00:48]}  Kf7 {[%clk 0:00:02]} 65. Rh6 {[%clk 0:00:48]}  Kg7 {[%clk 0:00:03]} 66. f6+ {[%clk 0:00:48]}  Kg8 {[%clk 0:00:03]} 67. Kg6 {[%clk 0:00:47]}  Rg7+ {[%clk 0:00:04]} 68. Kf5 {[%clk 0:00:47]}  Ra7 {[%clk 0:00:04]} 69. Rh1 {[%clk 0:00:46]}  Ra6 {[%clk 0:00:01]} 70. Kg6 {[%clk 0:00:45]}  Ra7 {[%clk 0:00:01]} 71. Rb1 {[%clk 0:00:45]}  Rg7+ {[%clk 0:00:02]} 72. Kf5 {[%clk 0:00:44]}  Rc7 {[%clk 0:00:03]} 73. g5 {[%clk 0:00:43]}  Kf7 {[%clk 0:00:03]} 74. Re1 {[%clk 0:00:42]}  Rc5+ {[%clk 0:00:03]} 75. Re5 {[%clk 0:00:42]}  Rc7 {[%clk 0:00:03]} 76. Re7+ {[%clk 0:00:43]}  Rxe7 {[%clk 0:00:03]} 77. fxe7 {[%clk 0:00:43]}  Kxe7 {[%clk 0:00:04]} 78. Kg6 {[%clk 0:00:44]}  Kf8 {[%clk 0:00:04]} 79. Kh7 {[%clk 0:00:45]}  Kf7 {[%clk 0:00:05]} 80. g6+ {[%clk 0:00:45]}  Kf6 {[%clk 0:00:05]} 81. g7 {[%clk 0:00:46]}  Kg5 {[%clk 0:00:06]} 82. g8=Q+ {[%clk 0:00:47]}  Kh5 {[%clk 0:00:07]} 83. Qa2 {[%clk 0:00:45]}  Kh4 {[%clk 0:00:08]} 84. Qd5 {[%clk 0:00:45]}  Kh3 {[%clk 0:00:09]} 85. Kg6 {[%clk 0:00:46]}  Kh2 {[%clk 0:00:10]} 86. Qf3 {[%clk 0:00:45]}  Kg1 {[%clk 0:00:09]} 87. Qe2 {[%clk 0:00:46]}  Kh1 {[%clk 0:00:09]} 88. Kg5 {[%clk 0:00:47]}  Kg1 {[%clk 0:00:10]} 89. Kg4 {[%clk 0:00:48]}  Kh1 {[%clk 0:00:11]} 90. Kg3 {[%clk 0:00:48]}  Kg1 {[%clk 0:00:12]} 91. Qe1# {[%clk 0:00:48]} 1-0


[Site "https://www.chess.com"]

[Event "Titled Tuesday Blitz June 27 Late 2023"]
[White "Mattheii"]
[Black "Karttunen, Mika"]
[BlackFideId "502081"]
[WhiteElo "2499"]
[BlackElo "2637"]
[Result "1-0"]
[Round "7"]
[TimeControl "180+2"]
[Date "2023.06.27"]
[WhiteClock "0:00:07"]
[BlackClock "0:00:00"]
[Board "66"]

1. d4 {[%clk 0:02:56]}  f5 {[%clk 0:02:45]} 2. g3 {[%clk 0:02:52]}  Nf6 {[%clk 0:02:44]} 3. Bg2 {[%clk 0:02:52]}  g6 {[%clk 0:02:44]} 4. c4 {[%clk 0:02:52]}  Bg7 {[%clk 0:02:44]} 5. Nc3 {[%clk 0:02:53]}  O-O {[%clk 0:02:45]} 6. Nh3 {[%clk 0:02:53]}  d6 {[%clk 0:02:43]} 7. d5 {[%clk 0:02:53]}  Na6 {[%clk 0:02:34]} 8. O-O {[%clk 0:02:53]}  Nc5 {[%clk 0:02:34]} 9. Qc2 {[%clk 0:02:50]}  a5 {[%clk 0:02:33]} 10. Nf4 {[%clk 0:02:29]}  Bd7 {[%clk 0:02:12]} 11. Be3 {[%clk 0:02:23]}  Na6 {[%clk 0:01:39]} 12. Bd4 {[%clk 0:02:19]}  c5 {[%clk 0:01:34]} 13. dxc6 {[%clk 0:02:18]}  bxc6 {[%clk 0:01:33]} 14. a3 {[%clk 0:02:05]}  e5 {[%clk 0:01:31]} 15. Be3 {[%clk 0:01:57]}  exf4 {[%clk 0:01:30]} 16. Bxf4 {[%clk 0:01:58]}  Qe7 {[%clk 0:01:25]} 17. Rad1 {[%clk 0:01:57]}  Ne8 {[%clk 0:01:24]} 18. h4 {[%clk 0:01:51]}  Nc5 {[%clk 0:01:18]} 19. b4 {[%clk 0:01:47]}  axb4 {[%clk 0:01:16]} 20. axb4 {[%clk 0:01:48]}  Ne6 {[%clk 0:01:16]} 21. Bc1 {[%clk 0:01:31]}  Rc8 {[%clk 0:00:57]} 22. e3 {[%clk 0:01:30]}  Rb8 {[%clk 0:00:27]} 23. Ba3 {[%clk 0:01:19]}  Qf6 {[%clk 0:00:27]} 24. Ne2 {[%clk 0:01:12]}  Qe7 {[%clk 0:00:20]} 25. Rd2 {[%clk 0:01:10]}  Rf7 {[%clk 0:00:18]} 26. Rfd1 {[%clk 0:01:10]}  N6c7 {[%clk 0:00:16]} 27. Nf4 {[%clk 0:01:08]}  Ra8 {[%clk 0:00:14]} 28. Qb3 {[%clk 0:01:05]}  Qd8 {[%clk 0:00:13]} 29. b5 {[%clk 0:01:02]}  cxb5 {[%clk 0:00:10]} 30. Bxa8 {[%clk 0:01:02]}  Qxa8 {[%clk 0:00:10]} 31. cxb5 {[%clk 0:01:02]}  Nxb5 {[%clk 0:00:10]} 32. Bb2 {[%clk 0:00:56]}  Nec7 {[%clk 0:00:07]} 33. h5 {[%clk 0:00:47]}  g5 {[%clk 0:00:06]} 34. Nd5 {[%clk 0:00:41]}  Be6 {[%clk 0:00:05]} 35. Nxc7 {[%clk 0:00:24]}  Bxb3 {[%clk 0:00:05]} 36. Nxa8 {[%clk 0:00:24]}  Bf8 {[%clk 0:00:03]} 37. Ra1 {[%clk 0:00:20]}  Rb7 {[%clk 0:00:03]} 38. Bd4 {[%clk 0:00:17]}  Bf7 {[%clk 0:00:03]} 39. Nb6 {[%clk 0:00:17]}  Bxh5 {[%clk 0:00:02]} 40. Nd5 {[%clk 0:00:15]}  Bf3 {[%clk 0:00:03]} 41. Nf6+ {[%clk 0:00:15]}  Kf7 {[%clk 0:00:04]} 42. Rb1 {[%clk 0:00:15]}  Be7 {[%clk 0:00:04]} 43. Nxh7 {[%clk 0:00:14]}  Nxd4 {[%clk 0:00:03]} 44. Rxb7 {[%clk 0:00:12]}  Bxb7 {[%clk 0:00:04]} 45. Rxd4 {[%clk 0:00:12]}  Kg6 {[%clk 0:00:03]} 46. Rb4 {[%clk 0:00:13]}  Bf3 {[%clk 0:00:03]} 47. Ra4 {[%clk 0:00:11]}  Kf7 {[%clk 0:00:02]} 48. Ra7 {[%clk 0:00:11]}  Ke6 {[%clk 0:00:02]} 49. Kf1 {[%clk 0:00:10]}  g4 {[%clk 0:00:03]} 50. Ke1 {[%clk 0:00:10]}  d5 {[%clk 0:00:02]} 51. Ra6+ {[%clk 0:00:09]}  Kf7 {[%clk 0:00:03]} 52. Kd2 {[%clk 0:00:09]}  Bc5 {[%clk 0:00:02]} 53. Rc6 {[%clk 0:00:08]}  Be7 {[%clk 0:00:02]} 54. Ra6 {[%clk 0:00:08]}  d4 {[%clk 0:00:02]} 55. exd4 {[%clk 0:00:07]}  Kg7 {[%clk 0:00:02]} 56. Ra7 {[%clk 0:00:06]}  Kf7 {[%clk 0:00:03]} 57. Ng5+ {[%clk 0:00:07]}  Kf6 {[%clk 0:00:03]} 58. Ke3 {[%clk 0:00:05]}  Bd6 {[%clk 0:00:02]} 59. Nh7+ {[%clk 0:00:05]}  Ke6 {[%clk 0:00:02]} 60. Ng5+ {[%clk 0:00:05]}  Kd5 {[%clk 0:00:03]} 61. Nf7 {[%clk 0:00:05]}  Bc7 {[%clk 0:00:03]} 62. Rxc7 {[%clk 0:00:04]}  Ke6 {[%clk 0:00:04]} 63. Rc5 {[%clk 0:00:05]}  Kxf7 {[%clk 0:00:04]} 64. Re5 {[%clk 0:00:06]}  Kf6 {[%clk 0:00:00]} 65. Kf4 {[%clk 0:00:07]} 1-0


[Site "https://www.chess.com"]

[Event "Titled Tuesday Blitz June 27 Late 2023"]
[White "Luong Phuong Hanh"]
[Black "MKlose11"]
[WhiteFideId "12401013"]
[WhiteElo "2458"]
[BlackElo "2592"]
[Result "0-1"]
[Round "7"]
[TimeControl "180+2"]
[Date "2023.06.27"]
[WhiteClock "0:00:34"]
[BlackClock "0:00:09"]
[Board "70"]

1. d4 {[%clk 0:03:00]}  Nf6 {[%clk 0:02:56]} 2. Nf3 {[%clk 0:02:56]}  c5 {[%clk 0:02:57]} 3. e3 {[%clk 0:02:56]}  g6 {[%clk 0:02:52]} 4. d5 {[%clk 0:02:41]}  Bg7 {[%clk 0:02:49]} 5. Nc3 {[%clk 0:02:23]}  O-O {[%clk 0:02:48]} 6. Be2 {[%clk 0:02:21]}  d6 {[%clk 0:02:37]} 7. e4 {[%clk 0:02:19]}  b5 {[%clk 0:02:34]} 8. Bxb5 {[%clk 0:02:18]}  Nxe4 {[%clk 0:02:30]} 9. O-O {[%clk 0:02:11]}  Nxc3 {[%clk 0:02:18]} 10. bxc3 {[%clk 0:02:11]}  Bxc3 {[%clk 0:02:19]} 11. Bh6 {[%clk 0:02:10]}  Bg7 {[%clk 0:02:16]} 12. Bxg7 {[%clk 0:02:09]}  Kxg7 {[%clk 0:02:17]} 13. h3 {[%clk 0:02:02]}  Nd7 {[%clk 0:02:09]} 14. Re1 {[%clk 0:02:01]}  Nf6 {[%clk 0:02:09]} 15. Bc6 {[%clk 0:02:00]}  Rb8 {[%clk 0:02:08]} 16. Qe2 {[%clk 0:02:00]}  e6 {[%clk 0:01:53]} 17. c4 {[%clk 0:01:54]}  exd5 {[%clk 0:01:41]} 18. cxd5 {[%clk 0:01:53]}  Bb7 {[%clk 0:01:35]} 19. Rad1 {[%clk 0:01:50]}  Bxc6 {[%clk 0:01:30]} 20. dxc6 {[%clk 0:01:51]}  Rc8 {[%clk 0:01:30]} 21. Qa6 {[%clk 0:01:50]}  Qc7 {[%clk 0:01:26]} 22. Re2 {[%clk 0:01:38]}  Rfd8 {[%clk 0:01:21]} 23. Ng5 {[%clk 0:01:29]}  h6 {[%clk 0:01:18]} 24. Ne4 {[%clk 0:01:26]}  Nxe4 {[%clk 0:01:13]} 25. Rxe4 {[%clk 0:01:25]}  Qxc6 {[%clk 0:01:14]} 26. Qe2 {[%clk 0:01:25]}  Rd7 {[%clk 0:00:54]} 27. Qb2+ {[%clk 0:01:22]}  Kh7 {[%clk 0:00:52]} 28. Rh4 {[%clk 0:01:21]}  d5 {[%clk 0:00:39]} 29. Qd2 {[%clk 0:01:19]}  h5 {[%clk 0:00:37]} 30. Qg5 {[%clk 0:01:13]}  d4 {[%clk 0:00:14]} 31. Rd3 {[%clk 0:01:11]}  Rd5 {[%clk 0:00:13]} 32. Qf4 {[%clk 0:01:02]}  Kg7 {[%clk 0:00:13]} 33. Rf3 {[%clk 0:00:56]}  Rf5 {[%clk 0:00:13]} 34. Qg3 {[%clk 0:00:49]}  Rxf3 {[%clk 0:00:14]} 35. gxf3 {[%clk 0:00:50]}  Qd5 {[%clk 0:00:12]} 36. Re4 {[%clk 0:00:48]}  d3 {[%clk 0:00:09]} 37. Re5 {[%clk 0:00:44]}  Qd6 {[%clk 0:00:08]} 38. f4 {[%clk 0:00:42]}  d2 {[%clk 0:00:08]} 39. Qc3 {[%clk 0:00:40]}  Kh7 {[%clk 0:00:06]} 40. Kg2 {[%clk 0:00:35]}  d1=Q {[%clk 0:00:06]} 41. Re3 {[%clk 0:00:36]}  Q1d4 {[%clk 0:00:06]} 42. Qb3 {[%clk 0:00:34]}  Q6d5+ {[%clk 0:00:06]} 43. Qxd5 {[%clk 0:00:32]}  Qxd5+ {[%clk 0:00:07]} 44. Kh2 {[%clk 0:00:31]}  c4 {[%clk 0:00:08]} 45. Rg3 {[%clk 0:00:31]}  c3 {[%clk 0:00:08]} 46. h4 {[%clk 0:00:32]}  c2 {[%clk 0:00:08]} 47. Kh3 {[%clk 0:00:33]}  c1=Q {[%clk 0:00:08]} 48. Kh2 {[%clk 0:00:34]}  Qch1# {[%clk 0:00:09]} 0-1


[Site "https://www.chess.com"]

[Event "Titled Tuesday Blitz June 27 Late 2023"]
[White "Ballester Llagaria, Luis Eduardo"]
[Black "Mazurkiewicz, Michal"]
[WhiteFideId "2297620"]
[BlackFideId "1124943"]
[WhiteElo "2591"]
[BlackElo "2452"]
[Result "1-0"]
[Round "7"]
[TimeControl "180+2"]
[Date "2023.06.27"]
[WhiteClock "0:01:42"]
[BlackClock "0:01:48"]
[Board "71"]

1. e4 {[%clk 0:03:00]}  d6 {[%clk 0:02:59]} 2. d4 {[%clk 0:03:00]}  Nf6 {[%clk 0:03:00]} 3. Nc3 {[%clk 0:02:59]}  c6 {[%clk 0:03:00]} 4. f4 {[%clk 0:02:59]}  Qb6 {[%clk 0:03:00]} 5. e5 {[%clk 0:02:42]}  Nd5 {[%clk 0:03:00]} 6. Nxd5 {[%clk 0:02:11]}  cxd5 {[%clk 0:03:00]} 7. Bd3 {[%clk 0:02:12]}  Nc6 {[%clk 0:03:00]} 8. c3 {[%clk 0:02:10]}  g6 {[%clk 0:02:59]} 9. Nf3 {[%clk 0:02:06]}  Bg4 {[%clk 0:02:59]} 10. h3 {[%clk 0:02:06]}  Bxf3 {[%clk 0:02:59]} 11. Qxf3 {[%clk 0:02:07]}  e6 {[%clk 0:03:00]} 12. O-O {[%clk 0:01:57]}  dxe5 {[%clk 0:02:26]} 13. fxe5 {[%clk 0:01:58]}  Nxe5 {[%clk 0:02:26]} 14. Qf6 {[%clk 0:01:49]}  Nxd3 {[%clk 0:02:05]} 15. Qxf7+ {[%clk 0:01:44]}  Kd8 {[%clk 0:02:02]} 16. Bg5+ {[%clk 0:01:44]}  Kc8 {[%clk 0:01:52]} 17. Qe8+ {[%clk 0:01:44]}  Kc7 {[%clk 0:01:51]} 18. Rf7+ {[%clk 0:01:44]}  Kd6 {[%clk 0:01:48]} 19. Qd7# {[%clk 0:01:42]} 1-0


[Site "https://www.chess.com"]